[Event "Caplin Hastings Masters 2023-24"]
[Site "Hastings"]
[Date "2024.01.03"]
[Round "7.13"]
[White "Beaumont, Chris R"]
[Black "Brown, Thomas"]
[Result "1/2-1/2"]
[ECO "E66"]
[WhiteElo "2236"]
[BlackElo "2095"]
[Annotator "RC"]
[PlyCount "43"]
[EventDate "2023.12.18"]
[EventType "swiss"]
[EventCountry "ENG"]
[SourceTitle "playchess.com"]
[Source "ChessBase"]
[SourceQuality "1"]
[TimeControl "40/6000+30:3000+30"]

1. Nf3 {[%emt 0:06:51]} g6 {[%emt 0:00:14]} 2. d4 {[%emt 0:00:32]} Nf6 {[%emt 0:00:55]} 3. c4 {[%emt 0:00:23]} Bg7 {[%emt 0:00:07]} 4. g3 {[%emt 0:00:12]} d6 {[%emt 0:05:33]} 5. Bg2 {[%emt 0:00:13]} O-O {[%emt 0:00:07]} 6. O-O {[%emt 0:00:09]} c5 {[%emt 0:00:57]} 7. Nc3 {[%emt 0:00:16]} Nc6 {[%emt 0:02:12]} 8. d5 {[%emt 0:00:37]} Na5 {[%emt 0:00:08]} 9. Nd2 {[%emt 0:00:21]} a6 {[%emt 0:02:19]} 10. Rb1 {[%emt 0:01:34]} Rb8 {[%emt 0:01:40]} 11. b3 {[%emt 0:00:49]} b5 {[%emt 0:03:15]} 12. Bb2 {[%emt 0:06:36]} bxc4 {[%emt 0:08:57]} 13. bxc4 {[%emt 0:00:31]} Ng4 {[%emt 0:04:50]} 14. Qc2 {[%emt 0:06:09]} Bf5 {[%emt 0:12:39]} 15. e4 {[%emt 0:02:23]} Bd7 {[%emt 0:00:07]} 16. Nd1 {[%emt 0:02:03]} Bxb2 {[%emt 0:09:34]} 17. Rxb2 {[%emt 0:11:34]} Rxb2 {[%emt 0:02:45]} 18. Nxb2 {[%emt 0:00:12]} e5 {[%emt 0:03:19]} 19. h3 {[%emt 0:17:31]} Nh6 {[%emt 0:00:28]} 20. Nd3 {[%emt 0:00:18]} Qc7 {[%emt 0:03:02]} 21. Rb1 {[%emt 0:23:09]} Rb8 {[%emt 0:01:24]} 22. Rxb8+ {[%emt 0:01:25]} 1/2-1/2

[Event "Caplin Hastings Masters 2023-24"]
[Site "Hastings"]
[Date "2024.01.03"]
[Round "7.14"]
[White "Ismail, Mohammed Aayan"]
[Black "Gormally, Daniel W"]
[Result "1/2-1/2"]
[ECO "A30"]
[WhiteElo "2115"]
[BlackElo "2442"]
[Annotator "RC"]
[PlyCount "76"]
[EventDate "2023.12.18"]
[EventType "swiss"]
[EventCountry "ENG"]
[SourceTitle "playchess.com"]
[Source "ChessBase"]
[SourceQuality "1"]
[TimeControl "40/6000+30:3000+30"]

1. Nf3 {[%emt 0:01:19]} Nf6 {[%emt 0:00:31]} 2. e3 {[%emt 0:00:56]} e6 {[%emt 0:00:55]} 3. b3 {[%emt 0:00:13]} c5 {[%emt 0:00:48]} 4. Bb2 {[%emt 0:00:05]} Nc6 {[%emt 0:01:03]} 5. Be2 {[%emt 0:03:48]} Be7 {[%emt 0:02:31]} 6. O-O {[%emt 0:00:09]} b6 {[%emt 0:04:28]} 7. d4 {[%emt 0:03:44]} Bb7 {[%emt 0:00:22]} 8. c4 {[%emt 0:00:49]} cxd4 {[%emt 0:00:42]} 9. Nxd4 {[%emt 0:00:32]} Nxd4 {[%emt 0:05:01]} 10. Qxd4 {[%emt 0:02:51]} O-O {[%emt 0:01:09]} 11. Nc3 {[%emt 0:02:44]} Bc5 {[%emt 0:04:45]} 12. Qh4 {[%emt 0:05:07]} Ne4 {[%emt 0:01:51]} 13. Qxd8 {[%emt 0:01:40]} Rfxd8 {[%emt 0:00:10]} 14. Bf3 {[%emt 0:04:38]} d5 {[%emt 0:04:47]} 15. Rfd1 {[%emt 0:08:41]} Ng5 {[%emt 0:04:18]} 16. cxd5 {[%emt 0:06:11]} Nxf3+ {[%emt 0:00:07]} 17. gxf3 {[%emt 0:00:03]} exd5 {[%emt 0:01:25]} 18. Ne2 {[%emt 0:04:30]} d4 {[%emt 0:04:19]} 19. exd4 {[%emt 0:09:52]} Bxf3 {[%emt 0:04:51]} 20. dxc5 {[%emt 0:06:00]} Rxd1+ {[%emt 0:00:53]} 21. Rxd1 {[%emt 0:00:07]} Bxe2 {[%emt 0:00:05]} 22. Re1 {[%emt 0:01:55]} Bf3 {[%emt 0:02:24]} 23. Re3 {[%emt 0:02:52]} Bc6 {[%emt 0:00:09]} 24. cxb6 {[%emt 0:03:17]} axb6 {[%emt 0:00:10]} 25. Rc3 {[%emt 0:01:07]} Bd5 {[%emt 0:03:29]} 26. Rd3 {[%emt 0:04:33]} Be6 {[%emt 0:02:15]} 27. Rg3 {[%emt 0:07:19]} g6 {[%emt 0:02:30]} 28. Rd3 {[%emt 0:00:31]} b5 {[%emt 0:02:22]} 29. Bf6 {[%emt 0:02:04]} h6 {[%emt 0:00:08]} 30. h4 {[%emt 0:04:59]} g5 {[%emt 0:04:56]} 31. h5 {[%emt 0:07:01]} Bg4 {[%emt 0:00:51]} 32. Rg3 {[%emt 0:00:00]} Bxh5 {[%emt 0:01:19]} 33. Rh3 {[%emt 0:01:11]} Ra6 {[%emt 0:04:53]} 34. Bxg5 {[%emt 0:04:44]} hxg5 {[%emt 0:00:26]} 35. Rxh5 {[%emt 0:00:02]} f6 {[%emt 0:00:32]} 36. f4 {[%emt 0:02:13]} Rxa2 {[%emt 0:00:12]} 37. fxg5 {[%emt 0:00:04]} Rb2 {[%emt 0:00:15]} 38. gxf6 {[%emt 0:00:36]} Rxb3 {[%emt 0:00:08]} 1/2-1/2

[Event "Caplin Hastings Masters 2023-24"]
[Site "Hastings"]
[Date "2024.01.03"]
[Round "7.15"]
[White "Bai, Xue"]
[Black "Unuk, Laura"]
[Result "1/2-1/2"]
[ECO "B12"]
[WhiteElo "2099"]
[BlackElo "2345"]
[Annotator "RC"]
[PlyCount "121"]
[EventDate "2023.12.18"]
[EventType "swiss"]
[EventCountry "ENG"]
[SourceTitle "playchess.com"]
[Source "ChessBase"]
[SourceQuality "1"]
[TimeControl "40/6000+30:3000+30"]

1. e4 {[%emt 0:00:17]} c6 {[%emt 0:01:12]} 2. d4 {[%emt 0:00:09]} d5 {[%emt 0:00:05]} 3. e5 {[%emt 0:00:04]} c5 {[%emt 0:00:11]} 4. Nf3 {[%emt 0:00:06]} cxd4 {[%emt 0:00:09]} 5. Nxd4 {[%emt 0:00:07]} e6 {[%emt 0:01:32]} 6. Bd3 {[%emt 0:03:37]} Nc6 {[%emt 0:01:36]} 7. Nxc6 {[%emt 0:00:14]} bxc6 {[%emt 0:00:07]} 8. O-O {[%emt 0:00:18]} Ne7 {[%emt 0:03:57]} 9. Re1 {[%emt 0:04:56]} Nf5 {[%emt 0:05:53]} 10. a4 {[%emt 0:10:50]} a5 {[%emt 0:04:05]} 11. b3 {[%emt 0:03:56]} Bc5 {[%emt 0:15:58]} 12. Ba3 {[%emt 0:08:27]} Bxa3 {[%emt 0:02:26]} 13. Nxa3 {[%emt 0:00:08]} O-O {[%emt 0:00:36]} 14. c3 {[%emt 0:09:28]} Ba6 {[%emt 0:17:54]} 15. Bxf5 {[%emt 0:03:27]} exf5 {[%emt 0:00:05]} 16. b4 {[%emt 0:01:48]} axb4 {[%emt 0:11:18]} 17. cxb4 {[%emt 0:00:06]} d4 {[%emt 0:00:38]} 18. b5 {[%emt 0:16:55]} cxb5 {[%emt 0:02:22]} 19. Nxb5 {[%emt 0:02:34]} d3 {[%emt 0:06:41]} 20. Qb3 {[%emt 0:06:27]} Bxb5 {[%emt 0:07:12]} 21. Qxb5 {[%emt 0:04:27]} Qd4 {[%emt 0:00:59]} 22. Red1 {[%emt 0:07:05]} Rfd8 {[%emt 0:01:32]} 23. a5 {[%emt 0:05:13]} Rab8 {[%emt 0:11:35]} 24. Qa4 {[%emt 0:00:13]} Rb4 {[%emt 0:05:05]} 25. Qa3 {[%emt 0:00:12]} Rb2 {[%emt 0:00:07]} 26. Rf1 {[%emt 0:00:25]} Qxe5 {[%emt 0:07:55]} 27. a6 {[%emt 0:00:24]} Rbb8 {[%emt 0:00:14]} 28. Rfe1 {[%emt 0:01:18]} Qd4 {[%emt 0:01:29]} 29. a7 {[%emt 0:04:45]} Ra8 {[%emt 0:00:01]} 30. Qa4 {[%emt 0:03:28]} d2 {[%emt 0:00:43]} 31. Red1 {[%emt 0:00:01]} Qd3 {[%emt 0:01:07]} 32. Qa5 {[%emt 0:02:54]} h6 {[%emt 0:00:48]} 33. Ra2 {[%emt 0:02:27]} Qe2 {[%emt 0:00:35]} 34. Raa1 {[%emt 0:00:37]} Rd7 {[%emt 0:00:26]} 35. Qa6 {[%emt 0:03:33]} Qxa6 {[%emt 0:00:54]} 36. Rxa6 {[%emt 0:00:05]} Raxa7 {[%emt 0:00:12]} 37. Rxa7 {[%emt 0:00:06]} Rxa7 {[%emt 0:00:02]} 38. Kf1 {[%emt 0:00:18]} Rd7 {[%emt 0:00:15]} 39. Ke2 {[%emt 0:00:06]} Kf8 {[%emt 0:00:46]} 40. Rxd2 {[%emt 0:00:54]} Rxd2+ {[%emt 0:00:04]} 41. Kxd2 {[%emt 0:50:05]} Ke7 {[%emt 0:51:08]} 42. Ke3 {[%emt 0:00:35]} Ke6 {[%emt 0:00:00]} 43. Kd4 {[%emt 0:00:00]} f4 {[%emt 0:00:00]} 44. Ke4 {[%emt 0:00:00]} g5 {[%emt 0:00:00]} 45. f3 {[%emt 0:00:00]} Kf6 {[%emt 0:00:00]} 46. Kd3 {[%emt 0:00:00]} Ke5 {[%emt 0:00:00]} 47. Kc3 {[%emt 0:00:00]} g4 {[%emt 0:00:00]} 48. Kc4 {[%emt 0:00:00]} Kf5 {[%emt 0:00:00]} 49. Kd3 {[%emt 0:00:00]} Kg5 {[%emt 0:00:00]} 50. Ke2 {[%emt 0:00:00]} Kh4 {[%emt 0:00:00]} 51. Kf1 {[%emt 0:00:00]} h5 {[%emt 0:02:32]} 52. Kg1 {[%emt 0:00:00]} f6 {[%emt 0:02:42]} 53. Kf1 {[%emt 0:00:00]} f5 {[%emt 0:00:22]} 54. Kg1 {[%emt 0:00:00]} Kg5 {[%emt 0:00:25]} 55. Kf2 {[%emt 0:00:00]} Kf6 {[%emt 0:00:03]} 56. Ke2 {[%emt 0:00:00]} Ke5 {[%emt 0:00:05]} 57. Kd3 {[%emt 0:00:00]} Kd5 {[%emt 0:00:07]} 58. Kc3 {[%emt 0:00:00]} h4 {[%emt 0:00:47]} 59. h3 {[%emt 0:00:00]} Kc5 {[%emt 0:00:53]} 60. Kd3 {[%emt 0:00:00]} gxh3 {[%emt 0:01:13]} 61. gxh3 {[%emt 0:00:00]} 1/2-1/2

[Event "Caplin Hastings Masters 2023-24"]
[Site "Hastings"]
[Date "2024.01.03"]
[Round "7.16"]
[White "Evenshaug, Amadeus Hestvik"]
[Black "Bozinakis, Pavlos"]
[Result "1/2-1/2"]
[ECO "B48"]
[WhiteElo "2041"]
[BlackElo "2274"]
[Annotator "RC"]
[PlyCount "81"]
[EventDate "2023.12.18"]
[EventType "swiss"]
[EventCountry "ENG"]
[SourceTitle "playchess.com"]
[Source "ChessBase"]
[SourceQuality "1"]
[TimeControl "40/6000+30:3000+30"]

1. e4 {[%emt 0:01:44]} c5 {[%emt 0:00:11]} 2. Nf3 {[%emt 0:00:59]} e6 {[%emt 0:00:11]} 3. d4 {[%emt 0:00:10]} cxd4 {[%emt 0:00:08]} 4. Nxd4 {[%emt 0:00:05]} Nc6 {[%emt 0:00:09]} 5. Nc3 {[%emt 0:02:34]} Qc7 {[%emt 0:00:23]} 6. Be3 {[%emt 0:02:52]} a6 {[%emt 0:00:15]} 7. g4 {[%emt 0:02:30]} Bb4 {[%emt 0:11:25]} 8. Nxc6 {[%emt 0:00:16]} Bxc3+ {[%emt 0:03:45]} 9. bxc3 {[%emt 0:01:50]} dxc6 {[%emt 0:00:48]} 10. f3 {[%emt 0:19:15]} Ne7 {[%emt 0:03:34]} 11. Bc5 {[%emt 0:08:38]} e5 {[%emt 0:02:23]} 12. Bc4 {[%emt 0:18:03]} Be6 {[%emt 0:01:36]} 13. Bxe6 {[%emt 0:00:28]} fxe6 {[%emt 0:00:07]} 14. Qd2 {[%emt 0:05:29]} O-O {[%emt 0:03:31]} 15. Qd6 {[%emt 0:04:56]} Qxd6 {[%emt 0:02:15]} 16. Bxd6 {[%emt 0:00:19]} Rf7 {[%emt 0:00:25]} 17. Bxe7 {[%emt 0:00:14]} Rxe7 {[%emt 0:00:09]} 18. Rd1 {[%emt 0:00:17]} a5 {[%emt 0:06:27]} 19. Ke2 {[%emt 0:02:58]} Kf7 {[%emt 0:00:51]} 20. Rd6 {[%emt 0:02:39]} Rc7 {[%emt 0:00:24]} 21. h4 {[%emt 0:04:03]} Ke7 {[%emt 0:00:38]} 22. Rhd1 {[%emt 0:00:58]} a4 {[%emt 0:00:37]} 23. a3 {[%emt 0:03:22]} h6 {[%emt 0:05:47]} 24. R6d3 {[%emt 0:04:22]} Ke8 {[%emt 0:01:46]} 25. Rg1 {[%emt 0:01:43]} g6 {[%emt 0:02:35]} 26. Ke3 {[%emt 0:01:26]} Rd7 {[%emt 0:00:44]} 27. Rgd1 {[%emt 0:04:10]} Rad8 {[%emt 0:02:26]} 28. Rf1 {[%emt 0:00:36]} Ke7 {[%emt 0:01:53]} 29. f4 {[%emt 0:00:42]} exf4+ {[%emt 0:01:55]} 30. Rxf4 {[%emt 0:00:04]} e5 {[%emt 0:00:29]} 31. Rf1 {[%emt 0:00:20]} b5 {[%emt 0:02:55]} 32. g5 {[%emt 0:00:51]} Rxd3+ {[%emt 0:05:21]} 33. cxd3 {[%emt 0:00:06]} hxg5 {[%emt 0:00:07]} 34. hxg5 {[%emt 0:00:09]} Rh8 {[%emt 0:00:29]} 35. Rf6 {[%emt 0:00:20]} Rh3+ {[%emt 0:00:07]} 36. Kd2 {[%emt 0:00:26]} Rh2+ {[%emt 0:00:10]} 37. Kc1 {[%emt 0:00:05]} Rh1+ {[%emt 0:03:20]} 38. Kc2 {[%emt 0:00:21]} Rh2+ {[%emt 0:00:11]} 39. Kc1 {[%emt 0:00:38]} Rh1+ {[%emt 0:00:13]} 40. Kc2 {[%emt 0:00:04]} Rh2+ {[%emt 0:00:11]} 41. Kc1 {[%emt 0:50:05]} 1/2-1/2

[Event "Caplin Hastings Masters 2023-24"]
[Site "Hastings"]
[Date "2024.01.03"]
[Round "7.17"]
[White "Pert, Max"]
[Black "Nielsen, Andre"]
[Result "1/2-1/2"]
[ECO "E12"]
[WhiteElo "1950"]
[BlackElo "2239"]
[Annotator "RC"]
[PlyCount "100"]
[EventDate "2023.12.18"]
[EventType "swiss"]
[EventCountry "ENG"]
[SourceTitle "playchess.com"]
[Source "ChessBase"]
[SourceQuality "1"]
[TimeControl "40/6000+30:3000+30"]

1. d4 {[%emt 0:00:03]} Nf6 {[%emt 0:00:41]} 2. Nf3 {[%emt 0:00:40]} e6 {[%emt 0:00:12]} 3. c4 {[%emt 0:00:47]} b6 {[%emt 0:00:13]} 4. a3 {[%emt 0:00:48]} Bb7 {[%emt 0:00:23]} 5. Nc3 {[%emt 0:01:03]} d5 {[%emt 0:00:34]} 6. cxd5 {[%emt 0:01:31]} Nxd5 {[%emt 0:00:44]} 7. Bd2 {[%emt 0:01:22]} Nd7 {[%emt 0:06:37]} 8. Nxd5 {[%emt 0:02:43]} exd5 {[%emt 0:09:07]} 9. Rc1 {[%emt 0:02:39]} Bd6 {[%emt 0:09:40]} 10. Bg5 {[%emt 0:02:33]} Qc8 {[%emt 0:00:50]} 11. e3 {[%emt 0:02:47]} O-O {[%emt 0:01:24]} 12. Bd3 {[%emt 0:03:09]} Re8 {[%emt 0:07:48]} 13. O-O {[%emt 0:05:00]} Nf8 {[%emt 0:01:34]} 14. Qc2 {[%emt 0:03:59]} c5 {[%emt 0:08:46]} 15. Rfe1 {[%emt 0:16:46]} cxd4 {[%emt 0:18:15]} 16. Qxc8 {[%emt 0:09:15]} Raxc8 {[%emt 0:00:29]} 17. Nxd4 {[%emt 0:01:14]} Rxc1 {[%emt 0:06:54]} 18. Rxc1 {[%emt 0:00:23]} Ne6 {[%emt 0:00:24]} 19. Bb5 {[%emt 0:21:16]} Rb8 {[%emt 0:16:45]} 20. Bh4 {[%emt 0:02:43]} Nxd4 {[%emt 0:03:32]} 21. exd4 {[%emt 0:00:08]} Bf4 {[%emt 0:01:23]} 22. Rc3 {[%emt 0:01:58]} Rc8 {[%emt 0:01:57]} 23. Rxc8+ {[%emt 0:18:24]} Bxc8 {[%emt 0:00:08]} 24. b3 {[%emt 0:01:18]} Bc1 {[%emt 0:01:09]} 25. Bg3 {[%emt 0:01:09]} Bxa3 {[%emt 0:01:04]} 26. Bc6 {[%emt 0:00:08]} Bb2 {[%emt 0:05:50]} 27. Bxd5 {[%emt 0:01:32]} Bxd4 {[%emt 0:00:09]} 28. Kf1 {[%emt 0:00:54]} a5 {[%emt 0:02:45]} 29. Ke2 {[%emt 0:01:23]} Ba6+ {[%emt 0:00:07]} 30. Kf3 {[%emt 0:01:19]} Bd3 {[%emt 0:00:33]} 31. Be4 {[%emt 0:00:58]} Bf1 {[%emt 0:00:55]} 32. Bd6 {[%emt 0:01:51]} g6 {[%emt 0:01:12]} 33. Bd5 {[%emt 0:01:18]} Kg7 {[%emt 0:00:31]} 34. Be7 {[%emt 0:01:34]} Bd3 {[%emt 0:00:49]} 35. Be4 {[%emt 0:00:42]} Bxe4+ {[%emt 0:00:23]} 36. Kxe4 {[%emt 0:00:05]} Bxf2 {[%emt 0:00:08]} 37. Kd5 {[%emt 0:00:06]} b5 {[%emt 0:04:11]} 38. Kc6 {[%emt 0:00:05]} a4 {[%emt 0:00:08]} 39. bxa4 {[%emt 0:00:13]} bxa4 {[%emt 0:00:05]} 40. Kb5 {[%emt 0:00:05]} Bg1 {[%emt 0:00:08]} 41. h3 {[%emt 0:50:08]} f5 {[%emt 0:51:30]} 42. Kxa4 {[%emt 0:00:21]} Kf7 {[%emt 0:00:07]} 43. Bg5 {[%emt 0:00:59]} Ke6 {[%emt 0:00:22]} 44. Kb3 {[%emt 0:01:15]} f4 {[%emt 0:00:00]} 45. Bxf4 {[%emt 0:00:00]} Kf5 {[%emt 0:00:00]} 46. Bc7 {[%emt 0:00:00]} Bd4 {[%emt 0:00:00]} 47. Kc2 {[%emt 0:00:00]} Be5 {[%emt 0:00:00]} 48. Bb6 {[%emt 0:00:00]} Ke4 {[%emt 0:00:00]} 49. Kd2 {[%emt 0:00:00]} Bd4 {[%emt 0:00:00]} 50. Bc7 {[%emt 0:00:00]} Be3+ {[%emt 0:00:00]} 1/2-1/2

[Event "Caplin Hastings Masters 2023-24"]
[Site "Hastings"]
[Date "2024.01.03"]
[Round "7.18"]
[White "Vasiliadis, Theodoros"]
[Black "Boswell, Jacob Connor"]
[Result "0-1"]
[ECO "A13"]
[WhiteElo "1845"]
[BlackElo "2235"]
[Annotator "RC"]
[PlyCount "82"]
[EventDate "2023.12.18"]
[EventType "swiss"]
[EventCountry "ENG"]
[SourceTitle "playchess.com"]
[Source "ChessBase"]
[SourceQuality "1"]
[TimeControl "40/6000+30:3000+30"]

1. c4 {[%emt 0:00:02]} Nf6 {[%emt 0:00:21]} 2. Nf3 {[%emt 0:00:21]} e6 {[%emt 0:00:09]} 3. g3 {[%emt 0:00:35]} d5 {[%emt 0:00:01]} 4. Bg2 {[%emt 0:00:22]} d4 {[%emt 0:06:43]} 5. b4 {[%emt 0:04:31]} c5 {[%emt 0:03:00]} 6. e3 {[%emt 0:08:18]} dxe3 {[%emt 0:01:17]} 7. fxe3 {[%emt 0:00:32]} cxb4 {[%emt 0:00:06]} 8. O-O {[%emt 0:04:28]} Nc6 {[%emt 0:02:18]} 9. d4 {[%emt 0:02:34]} Be7 {[%emt 0:05:50]} 10. a3 {[%emt 0:03:44]} bxa3 {[%emt 0:02:46]} 11. Bxa3 {[%emt 0:00:25]} Bxa3 {[%emt 0:08:53]} 12. Rxa3 {[%emt 0:04:35]} O-O {[%emt 0:00:08]} 13. Nc3 {[%emt 0:01:49]} Bd7 {[%emt 0:11:34]} 14. Ne5 {[%emt 0:24:04]} Qe7 {[%emt 0:15:12]} 15. Rb3 {[%emt 0:09:06]} Rab8 {[%emt 0:04:01]} 16. Rf4 {[%emt 0:08:30]} Rfd8 {[%emt 0:04:05]} 17. Qf1 {[%emt 0:11:29]} Be8 {[%emt 0:05:31]} 18. Rh4 {[%emt 0:09:19]} Nxe5 {[%emt 0:07:44]} 19. dxe5 {[%emt 0:00:05]} Nd7 {[%emt 0:00:17]} 20. Qb1 {[%emt 0:02:49]} h6 {[%emt 0:02:15]} 21. Rxb7 {[%emt 0:01:36]} Qc5 {[%emt 0:01:40]} 22. Rd4 {[%emt 0:05:43]} Qxe5 {[%emt 0:03:30]} 23. Qe4 {[%emt 0:00:46]} Qa5 {[%emt 0:03:02]} 24. Qc2 {[%emt 0:02:15]} Nc5 {[%emt 0:09:50]} 25. Rxb8 {[%emt 0:00:21]} Rxb8 {[%emt 0:00:16]} 26. h4 {[%emt 0:02:08]} Nb3 {[%emt 0:01:34]} 27. Rf4 {[%emt 0:01:05]} Qe5 {[%emt 0:01:24]} 28. Nd1 {[%emt 0:01:56]} Nc5 {[%emt 0:00:59]} 29. Qc3 {[%emt 0:00:53]} Qd6 {[%emt 0:02:39]} 30. Qd4 {[%emt 0:00:23]} Qc7 {[%emt 0:00:01]} 31. Rg4 {[%emt 0:00:13]} e5 {[%emt 0:00:24]} 32. Qd5 {[%emt 0:00:42]} Rd8 {[%emt 0:00:42]} 33. Qf3 {[%emt 0:00:21]} f5 {[%emt 0:00:59]} 34. Qxf5 {[%emt 0:00:34]} Rxd1+ {[%emt 0:00:20]} 35. Kh2 {[%emt 0:00:22]} Bd7 {[%emt 0:01:22]} 36. Bd5+ {[%emt 0:00:50]} Rxd5 {[%emt 0:02:02]} 37. Qg6 {[%emt 0:00:24]} Rd2+ {[%emt 0:00:41]} 38. Kg1 {[%emt 0:00:35]} Bxg4 {[%emt 0:00:23]} 39. Qe8+ {[%emt 0:00:14]} Kh7 {[%emt 0:00:03]} 40. h5 {[%emt 0:00:09]} Rd1+ {[%emt 0:00:37]} 41. Kh2 {[%emt 0:50:09]} Qd6 {[%emt 0:51:54]} 0-1

[Event "Caplin Hastings Masters 2023-24"]
[Site "Hastings"]
[Date "2024.01.03"]
[Round "7.19"]
[White "Villiers, Thomas"]
[Black "Hobson, Kenneth"]
[Result "0-1"]
[ECO "A21"]
[WhiteElo "2230"]
[BlackElo "2130"]
[Annotator "RC"]
[PlyCount "56"]
[EventDate "2023.12.18"]
[EventType "swiss"]
[EventCountry "ENG"]
[SourceTitle "playchess.com"]
[Source "ChessBase"]
[SourceQuality "1"]
[TimeControl "40/6000+30:3000+30"]

1. c4 {[%emt 0:00:04]} e5 {[%emt 0:02:25]} 2. Nc3 {[%emt 0:00:05]} Bb4 {[%emt 0:00:04]} 3. Nd5 {[%emt 0:00:05]} Be7 {[%emt 0:01:19]} 4. d4 {[%emt 0:00:10]} d6 {[%emt 0:00:05]} 5. Nxe7 {[%emt 0:00:48]} Qxe7 {[%emt 0:00:55]} 6. e3 {[%emt 0:02:23]} Nf6 {[%emt 0:03:23]} 7. dxe5 {[%emt 0:01:49]} dxe5 {[%emt 0:00:11]} 8. Nf3 {[%emt 0:00:16]} O-O {[%emt 0:03:17]} 9. Be2 {[%emt 0:00:10]} a5 {[%emt 0:02:21]} 10. O-O {[%emt 0:01:34]} a4 {[%emt 0:04:18]} 11. Qc2 {[%emt 0:01:15]} Nc6 {[%emt 0:01:35]} 12. Bd2 {[%emt 0:01:20]} Re8 {[%emt 0:03:44]} 13. Rfd1 {[%emt 0:01:18]} e4 {[%emt 0:04:34]} 14. Nd4 {[%emt 0:00:35]} Nxd4 {[%emt 0:02:52]} 15. exd4 {[%emt 0:00:06]} Ng4 {[%emt 0:02:21]} 16. Bf4 {[%emt 0:04:52]} Ra6 {[%emt 0:12:24]} 17. Bg3 {[%emt 0:12:42]} h5 {[%emt 0:06:10]} 18. h3 {[%emt 0:00:21]} h4 {[%emt 0:01:08]} 19. hxg4 {[%emt 0:03:20]} hxg3 {[%emt 0:00:28]} 20. fxg3 {[%emt 0:00:04]} Qg5 {[%emt 0:03:22]} 21. Qc3 {[%emt 0:05:13]} Rh6 {[%emt 0:06:33]} 22. Rf1 {[%emt 0:02:31]} Rh7 {[%emt 0:08:02]} 23. Qa3 {[%emt 0:28:26]} Qd2 {[%emt 0:09:17]} 24. Qxa4 {[%emt 0:15:06]} c6 {[%emt 0:04:04]} 25. d5 {[%emt 0:12:19]} Qe3+ {[%emt 0:01:25]} 26. Rf2 {[%emt 0:00:07]} Qh6 {[%emt 0:00:17]} 27. Rxf7 {[%emt 0:02:22]} e3 {[%emt 0:00:41]} 28. Rxg7+ {[%emt 0:00:26]} Kxg7 {[%emt 0:00:05]} 0-1

[Event "Caplin Hastings Masters 2023-24"]
[Site "Hastings"]
[Date "2024.01.03"]
[Round "7.20"]
[White "Juknis, Paulius"]
[Black "Rayner, Francis"]
[Result "1-0"]
[ECO "D00"]
[WhiteElo "2148"]
[BlackElo "2035"]
[Annotator "NA RC"]
[PlyCount "109"]
[EventDate "2023.12.18"]
[EventType "swiss"]
[EventCountry "ENG"]
[SourceTitle "playchess.com"]
[Source "ChessBase"]
[SourceQuality "1"]
[TimeControl "40/6000+30:3000+30"]

1. d4 {[%emt 0:00:04]} d5 {[%emt 0:05:24]} 2. Bf4 {[%emt 0:02:01]} c5 {[%emt 0:02:07]} 3. e3 {[%emt 0:02:50]} Nc6 {[%emt 0:01:54]} 4. c3 {[%emt 0:01:04]} Nf6 {[%emt 0:02:47]} 5. Nd2 {[%emt 0:00:16]} Bf5 {[%emt 0:02:20]} 6. Ngf3 {[%emt 0:00:55]} e6 {[%emt 0:02:53]} 7. Nh4 {[%emt 0:03:52]} Bg6 {[%emt 0:02:00]} 8. Qb3 {[%emt 0:06:40]} Qb6 {[%emt 0:05:23]} 9. Nxg6 {[%emt 0:01:46]} hxg6 {[%emt 0:00:06]} 10. Qxb6 {[%emt 0:01:08]} axb6 {[%emt 0:00:04]} 11. Be2 {[%emt 0:09:27]} Be7 {[%emt 0:01:58]} 12. h3 {[%emt 0:04:28]} Nd7 {[%emt 0:04:27]} 13. O-O {[%emt 0:01:25]} f6 {[%emt 0:07:25]} 14. Bg3 {[%emt 0:02:00]} Kf7 {[%emt 0:00:32]} 15. f3 {[%emt 0:08:09]} Rhd8 {[%emt 0:04:26]} 16. Bf2 {[%emt 0:03:15]} c4 {[%emt 0:06:15]} 17. e4 {[%emt 0:06:29]} b5 {[%emt 0:01:22]} 18. a3 {[%emt 0:00:47]} Nb6 {[%emt 0:01:22]} 19. Rac1 {[%emt 0:00:55]} Ra6 {[%emt 0:01:41]} 20. Rc2 {[%emt 0:01:51]} Bd6 {[%emt 0:04:18]} 21. g3 {[%emt 0:05:31]} g5 {[%emt 0:03:18]} 22. Kg2 {[%emt 0:01:05]} Kg6 {[%emt 0:00:59]} 23. Rh1 {[%emt 0:00:44]} Raa8 {[%emt 0:05:02]} 24. h4 {[%emt 0:04:46]} gxh4 {[%emt 0:03:19]} 25. Rxh4 {[%emt 0:00:07]} Rh8 {[%emt 0:00:30]} 26. Rxh8 {[%emt 0:00:08]} Rxh8 {[%emt 0:00:06]} 27. e5 {[%emt 0:04:33]} Be7 {[%emt 0:02:46]} 28. Nf1 {[%emt 0:03:42]} Na4 {[%emt 0:02:56]} 29. f4 {[%emt 0:04:42]} Kf7 {[%emt 0:03:52]} 30. exf6 {[%emt 0:01:26]} gxf6 {[%emt 0:00:14]} 31. Ne3 {[%emt 0:00:40]} f5 {[%emt 0:10:10]} 32. g4 {[%emt 0:00:43]} Bd6 {[%emt 0:02:45]} 33. gxf5 {[%emt 0:05:21]} Bxf4 {[%emt 0:00:56]} 34. Bg4 {[%emt 0:13:13]} exf5 {[%emt 0:01:52]} 35. Bf3 {[%emt 0:00:35]} Ne7 {[%emt 0:09:18]} 36. Nxd5 {[%emt 0:01:12]} Nxd5 {[%emt 0:00:18]} 37. Bxd5+ {[%emt 0:00:06]} Kf6 {[%emt 0:00:27]} 38. Bxb7 {[%emt 0:02:48]} Rb8 {[%emt 0:03:51]} 39. Bc6 {[%emt 0:01:03]} Ke6 {[%emt 0:03:35]} 40. d5+ {[%emt 0:00:47]} Kd6 {[%emt 0:01:04]} 41. Ba7 {[%emt 0:51:36]} Rh8 {[%emt 0:06:17]} 42. Bg1 {[%emt 0:00:00]} Rg8+ {[%emt 0:02:03]} 43. Kf1 {[%emt 0:00:00]} Rb8 {[%emt 0:01:02]} 44. Rg2 {[%emt 0:00:00]} Bc1 {[%emt 0:02:48]} 45. Rg6+ {[%emt 0:00:00]} Ke7 {[%emt 0:04:06]} 46. Rg7+ {[%emt 0:00:00]} Kd6 {[%emt 0:01:28]} 47. Rg6+ {[%emt 0:00:00]} Ke7 {[%emt 0:02:15]} 48. Bd4 {[%emt 0:00:00]} Bxb2 {[%emt 0:04:25]} 49. Be5 {[%emt 0:00:00]} Rd8 {[%emt 0:07:49]} 50. d6+ {[%emt 0:00:00]} Kf7 {[%emt 0:01:30]} 51. Rg7+ {[%emt 0:00:00]} Kf8 {[%emt 0:00:05]} 52. Bd5 {[%emt 0:00:00]} Rxd6 {[%emt 0:01:39]} 53. Rf7+ {[%emt 0:00:00]} Ke8 {[%emt 0:00:27]} 54. Bxd6 {[%emt 0:00:00]} Nxc3 {[%emt 0:00:16]} 55. Be6 {[%emt 0:00:00]} 1-0